bitfinex-derivatives/quotes_ETHF0:USTF0_20230403
["timestamp","ask_amount","ask_price","bid_price","bid_amount"]
[1680547783290,4.329,1833.6,1833.5,0.15031893]
[1680547784987,5.329,1833.6,1833.5,0.15031893]
[1680547785288,4.329,1833.6,1833.0,0.54998751]
[1680547785498,3.2078,1833.3,1833.0,0.54998751]
[1680547786091,0.84745547,1833.2,1833.0,0.54998751]
[1680547786589,3.2078,1833.4,1833.0,0.54998751]
[1680547786782,0.54054882,1833.7,1833.1,3.2078]
[1680547786984,0.84740321,1833.3,1833.2,1.0]
[1680547787191,3.2078,1833.8,1833.2,1.54998751]
[1680547787583,0.84706115,1833.7,1833.2,1.54998751]
[1680547788197,0.84706115,1833.7,1833.3,3.2078]
[1680547788598,3.2078,1833.9,1833.2,1.54998751]
[1680547788794,0.84699016,1833.6,1833.2,4.75778751]
[1680547788995,7.5688,1833.7,1833.2,3.75778751]
[1680547789195,7.5688,1833.7,1833.2,3.2078]
[1680547790695,7.5688,1833.7,1833.3,1.0]
[1680547790892,3.2078,1833.7,1833.3,1.0]
[1680547791296,3.2078,1833.7,1833.2,4.2078]
[1680547792201,3.2078,1833.7,1833.1,1.54998751]
[1680547792498,3.2078,1833.5,1833.1,0.54998751]
[1680547793004,3.2078,1833.5,1833.0,0.54998751]
[1680547793495,0.84699339,1833.4,1833.0,0.54998751]
[1680547793896,0.84699339,1833.4,1832.9,0.54998751]
[1680547794296,7.5488,1833.7,1833.0,3.75778751]
[1680547794496,3.2078,1833.5,1833.0,0.54998751]
[1680547794698,3.2078,1833.5,1833.1,0.54998751]
[1680547794895,3.2078,1833.5,1833.0,0.54998751]
[1680547795094,3.2078,1833.3,1833.0,0.54998751]
[1680547795798,3.2078,1833.3,1833.0,1.54998751]
[1680547795999,3.2078,1833.3,1833.0,0.54998751]
[1680547796998,3.2078,1833.3,1832.9,0.54998751]
[1680547797200,3.2078,1833.3,1833.0,0.54998751]
[1680547797395,3.2078,1833.5,1833.0,0.54998751]
[1680547797600,3.2078,1833.5,1833.0,1.37484463]
[1680547797802,3.2078,1833.5,1833.0,2.37484463]
[1680547798101,0.84674566,1833.4,1833.0,1.37484463]
[1680547798402,0.84674566,1833.4,1833.0,2.37484463]
[1680547798598,0.84674566,1833.4,1833.1,1.54998751]
[1680547798896,0.84674566,1833.4,1833.1,0.54998751]
[1680547799103,3.2078,1833.6,1833.1,0.54998751]
[1680547799402,3.2078,1833.4,1833.0,1.54998751]
[1680547799698,4.341,1833.7,1833.1,0.54998751]
[1680547800399,3.2078,1833.6,1833.1,0.54998751]
[1680547802808,3.2078,1834.0,1833.2,9.28978751]
[1680547803108,3.2078,1834.0,1833.3,1.0]
[1680547803605,3.2078,1833.8,1833.3,6.532]
[1680547803995,9.21508416,1834.1,1833.4,3.2078]
[1680547804404,10.25812997,1834.3,1833.8,3.2078]
[1680547804405,3.2078,1834.3,1833.8,3.2078]
[1680547804607,1.60046176,1834.7,1834.0,8.7398]
[1680547804608,3.2078,1834.7,1834.0,8.7398]
[1680547804806,8.2314,1834.9,1834.2,4.361]
[1680547804997,3.2078,1834.7,1834.2,7.5688]
[1680547805198,3.2078,1834.9,1834.2,7.5688]
[1680547805508,3.2078,1834.9,1834.4,3.2078]
[1680547805801,4.8743,1835.0,1834.4,8.7398]
[1680547806009,0.07868253,1834.8,1834.4,8.7398]
[1680547806402,3.2078,1835.1,1834.4,8.7398]
[1680547806602,3.2078,1834.9,1834.4,8.7398]
[1680547806905,3.2078,1834.9,1834.3,5.532]
[1680547807606,3.2078,1834.7,1834.3,5.532]
[1680547808310,3.2078,1834.7,1834.2,0.54950097]
[1680547808508,3.2078,1834.7,1833.9,46.332]
[1680547808804,3.2078,1834.5,1834.0,3.2078]
[1680547809407,0.38332506,1834.4,1834.0,4.2078]
[1680547809708,7.5488,1834.8,1834.2,3.2078]
[1680547809906,3.2078,1834.6,1834.0,5.532]
[1680547810110,3.2078,1834.6,1833.9,44.0078]
[1680547810414,7.5688,1834.6,1833.9,44.0078]
[1680547810603,3.2078,1834.4,1833.9,44.0078]
[1680547811616,3.2078,1834.4,1833.9,40.8]
[1680547811909,3.2078,1834.4,1833.7,0.55171565]
[1680547812115,3.2078,1834.2,1833.6,3.2078]
[1680547812314,3.2078,1834.2,1833.6,3.75184568]
[1680547812915,3.2078,1834.2,1833.7,1.0]
[1680547813117,3.2078,1834.5,1833.7,10.893]
[1680547813428,8.1208,1834.8,1834.1,7.5668]
[1680547813631,8.1208,1834.8,1834.1,13.0988]
[1680547814226,8.1208,1834.8,1834.3,3.2078]
[1680547814427,3.2078,1834.8,1834.3,3.2078]
[1680547814617,7.5628,1835.1,1834.3,3.2078]
[1680547814813,3.2078,1835.1,1834.5,3.2078]
[1680547815424,0.05819526,1835.0,1834.5,3.2078]
[1680547815625,0.05819526,1835.0,1834.3,5.361]
[1680547815626,7.5688,1834.9,1834.1,0.53511346]
[1680547815822,4.341,1834.7,1834.0,3.2078]
[1680547816128,4.341,1834.7,1834.2,3.2078]
[1680547816129,3.2078,1834.7,1834.2,3.2078]
[1680547816322,4.361,1834.9,1834.2,3.2078]
[1680547816722,4.361,1834.9,1834.2,8.7398]
[1680547817228,2.168,1834.9,1834.4,2.18]
[1680547817628,2.168,1834.9,1834.4,5.3878]
[1680547817829,3.26599526,1835.0,1834.6,5.3878]
[1680547818032,3.2078,1835.0,1834.6,5.3878]
[1680547818825,2.161,1834.7,1834.4,3.2078]
[1680547819220,0.09814605,1834.6,1834.4,5.3878]
[1680547819524,2.16,1834.9,1834.4,10.9198]
[1680547819719,2.16,1834.9,1834.6,3.2078]
[1680547819925,2.16,1834.9,1834.4,5.3878]
[1680547820124,0.07207159,1834.8,1834.4,2.18]
[1680547820521,2.16,1834.9,1834.4,2.18]
[1680547821620,2.16,1834.9,1834.4,5.3878]
[1680547822149,5.90396806,1835.2,1834.7,2.18]
[1680547822432,5.3688,1835.2,1834.7,2.18]
[1680547822722,4.6523,1835.5,1834.5,5.3878]
[1680547822723,5.3678,1835.0,1834.5,5.3878]
[1680547823326,5.3678,1835.0,1834.5,2.18]
[1680547823722,0.06099416,1834.9,1834.5,2.18]
[1680547824026,0.06099416,1834.9,1834.5,5.3878]
[1680547824329,0.06099416,1834.9,1834.5,2.18]
[1680547824532,0.06099416,1834.9,1834.5,5.3878]
[1680547824826,0.06099416,1834.9,1834.6,2.18]
[1680547826542,0.06099416,1834.9,1834.8,2.18]
[1680547826837,3.2078,1835.2,1834.8,2.18]
[1680547827323,2.163,1835.1,1834.5,2.18]
[1680547827633,3.2078,1835.0,1834.5,2.18]
[1680547828019,3.2078,1835.0,1834.5,5.3878]
[1680547828934,2.163,1835.1,1834.5,5.3878]
[1680547829523,3.2078,1835.0,1834.6,1.0]
[1680547829725,3.2078,1835.0,1834.5,2.18]
[1680547829922,3.2078,1835.0,1834.5,5.3878]
[1680547830327,3.2078,1835.0,1834.5,2.18]
[1680547831738,5.3878,1835.2,1834.7,2.162]
[1680547831938,5.3678,1835.0,1834.5,2.18]
[1680547832631,2.16,1835.0,1834.5,2.18]
[1680547832830,5.3878,1835.2,1834.7,2.18]
[1680547833436,5.3878,1835.2,1834.8,3.25611937]
[1680547833742,19.2928,1835.4,1834.9,2.18]
[1680547834040,5.3688,1835.4,1834.9,2.18]
[1680547835133,5.3878,1835.2,1834.8,0.04831937]
[1680547835333,2.163,1834.9,1834.8,0.04831937]
[1680547835531,2.163,1834.9,1834.0,2.18]
[1680547835532,8.163,1834.9,1834.0,2.18]
[1680547835841,2.161,1834.5,1834.0,2.18]
[1680547836241,5.3688,1834.5,1834.0,2.18]
[1680547836741,2.16,1834.3,1833.9,3.2078]
[1680547836940,5.3678,1834.3,1833.9,3.2078]
[1680547837454,5.3678,1834.3,1833.8,2.162]
[1680547838738,2.18,1834.5,1834.0,2.18]
[1680547839936,3.2078,1834.4,1834.0,2.18]
[1680547842044,5.3708,1834.4,1833.9,5.3698]
[1680547842239,5.3708,1834.4,1833.9,2.162]
[1680547842647,7.2516,1834.8,1834.2,2.18]
[1680547842848,5.0716,1834.8,1834.4,2.18]
[1680547843143,3.39556004,1834.9,1834.4,2.18]
[1680547843144,0.16011586,1834.7,1834.4,2.18]
[1680547843347,0.16011586,1834.7,1834.3,2.18]
[1680547843648,3.2078,1834.7,1834.3,2.18]
[1680547845140,2.18,1834.8,1834.3,2.18]
[1680547845346,3.2078,1834.7,1834.3,2.18]
[1680547845742,2.18,1834.8,1834.3,2.18]
[1680547845944,2.18,1834.8,1834.3,5.3878]
[1680547846451,2.18,1834.8,1834.3,2.18]
[1680547846748,3.2078,1834.7,1834.3,2.18]
[1680547846941,3.2078,1834.7,1834.5,2.18]
[1680547847641,2.73427552,1835.0,1834.5,2.18]
[1680547848048,3.2078,1834.9,1834.5,2.18]
[1680547849344,5.3678,1834.7,1834.2,2.18]
[1680547849948,5.3878,1834.5,1834.1,0.55671966]
[1680547850253,5.3878,1834.5,1834.0,2.18]
[1680547850655,3.2078,1834.3,1834.0,2.18]
[1680547850847,5.3878,1834.5,1834.0,2.18]
[1680547851047,5.3878,1834.5,1834.0,5.3878]
[1680547851749,5.3758,1834.3,1833.8,3.2078]
[1680547851957,3.2078,1834.3,1833.9,2.18]
[1680547852147,3.2078,1834.3,1834.1,2.18]
[1680547852346,3.2078,1834.5,1834.1,2.18]
[1680547852647,3.2078,1834.3,1834.1,2.18]
[1680547853054,3.2078,1834.3,1833.9,2.18]
[1680547853850,3.2078,1834.3,1834.0,2.18]
[1680547854551,0.12414176,1834.2,1834.1,1.0]
[1680547854754,0.12414176,1834.2,1834.0,5.3878]
[1680547854953,5.3878,1834.5,1834.0,5.3878]
[1680547855652,3.2078,1834.5,1834.2,2.162]
[1680547855953,5.0492,1834.8,1834.4,2.18]
[1680547856145,5.3678,1834.9,1834.4,2.18]
[1680547856746,3.2078,1834.7,1834.5,0.05247927]
[1680547857156,5.3688,1834.7,1834.5,0.05247927]
[1680547857546,5.3688,1834.7,1834.2,2.18]
[1680547857748,0.05846012,1834.6,1834.3,1.0]
[1680547858057,5.3758,1834.9,1834.4,2.18]
[1680547858256,5.3758,1834.9,1834.4,5.44678956]
[1680547858956,5.3758,1834.9,1834.4,2.23898956]
[1680547859757,3.2078,1834.7,1834.4,2.23898956]
[1680547860751,5.3688,1834.7,1834.4,0.05898956]
[1680547860950,3.2078,1834.5,1834.2,2.18]
[1680547861154,3.2078,1834.3,1834.0,2.18]
[1680547861556,0.12433196,1834.2,1834.0,2.18]
[1680547862158,0.12433196,1834.2,1833.8,3.18]
[1680547862355,0.12433196,1834.2,1833.8,2.18]
[1680547862561,3.2078,1834.3,1833.8,2.18]
[1680547863056,0.11953641,1834.2,1833.8,2.18]
[1680547863455,0.11953641,1834.2,1833.7,3.2078]
[1680547863456,3.2078,1834.1,1833.7,3.2078]
[1680547863855,2.29953641,1834.2,1833.7,3.2078]
[1680547864057,2.29953641,1834.2,1833.7,4.2078]
[1680547864261,0.11953641,1834.2,1833.9,2.18]
[1680547864458,5.3678,1834.4,1833.9,2.18]
[1680547864657,5.3678,1834.4,1833.9,5.3878]
[1680547865661,3.2078,1834.4,1834.1,2.18]
[1680547865855,5.3758,1834.6,1834.1,2.18]
[1680547866055,3.2078,1834.8,1834.5,2.18]
[1680547866454,3.2078,1834.8,1834.6,0.0562935]
[1680547867465,5.3878,1834.8,1834.6,0.0562935]
[1680547867660,5.3878,1834.8,1834.3,2.18]
[1680547868057,3.2078,1834.6,1834.3,2.18]
[1680547868261,2.18,1834.8,1834.3,2.18]
[1680547868262,3.2078,1834.7,1834.3,2.18]
[1680547869367,5.3878,1835.2,1834.6,2.18]
[1680547869561,1.13342433,1835.1,1834.6,2.18]
[1680547869766,3.2078,1835.0,1834.6,2.18]
[1680547870066,0.53594638,1835.5,1834.9,5.3878]
[1680547870067,3.2078,1835.4,1834.9,5.3878]
[1680547870464,3.2078,1835.4,1835.2,2.162]
[1680547870763,3.2078,1836.2,1835.4,5.532]
[1680547870965,1.12953992,1836.1,1836.0,2.18]
[1680547871266,3.2078,1836.4,1836.0,2.18]
[1680547871558,1.12734994,1836.3,1835.9,2.18]
[1680547871764,3.2078,1836.2,1835.9,2.18]
[1680547871959,1.12852539,1836.1,1836.0,0.74604168]
[1680547872367,8.82152539,1836.1,1835.4,2.18]
[1680547872564,2.18,1835.7,1835.2,2.18]
[1680547872762,3.2078,1835.6,1835.5,0.33063319]
[1680547873067,3.2078,1835.6,1835.2,2.18]
[1680547873265,3.2078,1835.4,1835.2,2.18]
[1680547873566,3.2078,1835.9,1835.3,3.162]
[1680547873762,3.2078,1835.9,1835.4,2.18]
[1680547874070,3.2078,1835.7,1835.4,2.18]
[1680547874573,3.2078,1835.5,1835.2,2.18]
[1680547875374,3.2078,1835.3,1835.1,2.18]
[1680547875974,3.2078,1835.3,1834.8,2.18]
[1680547876169,3.2078,1835.1,1834.8,2.18]
[1680547876378,3.2078,1835.1,1834.7,2.18]
[1680547876575,5.3878,1835.1,1834.5,2.162]
[1680547876781,0.0877487,1835.0,1834.5,2.162]
[1680547876991,0.0877487,1835.0,1834.4,3.2078]
[1680547876992,3.2078,1834.9,1834.7,2.18]
[1680547877777,2.16,1835.3,1834.7,2.18]
[1680547878089,3.2078,1835.4,1834.9,2.18]
[1680547878783,5.3758,1835.7,1835.1,2.18]
[1680547879590,3.2078,1835.7,1835.3,2.18]
[1680547879888,3.2078,1835.5,1835.4,0.27324248]
[1680547880283,3.2078,1835.5,1834.8,3.2078]
[1680547880489,3.2078,1835.3,1834.9,2.18]
[1680547881583,3.2078,1835.1,1834.7,2.18]
[1680547882193,3.2078,1834.9,1834.7,2.18]
[1680547882783,3.2078,1834.9,1834.8,0.0585183]
[1680547883390,5.3678,1835.2,1834.8,0.0585183]
[1680547883688,5.0811,1835.5,1835.1,2.18]
[1680547883895,3.2078,1835.5,1835.1,2.18]
[1680547884391,3.2078,1835.5,1835.2,0.23345729]
[1680547884797,3.2078,1835.5,1835.3,2.18]
[1680547885392,7.0151,1835.8,1835.3,2.18]
[1680547885593,3.2078,1835.7,1835.3,2.18]
[1680547886295,2.16,1835.8,1835.3,2.18]
[1680547886507,3.2078,1835.9,1835.4,2.18]
[1680547887501,3.2078,1835.9,1835.4,5.3878]
[1680547889001,3.2078,1835.9,1835.6,2.18]
[1680547889590,3.2078,1836.1,1835.8,2.18]
[1680547890093,1.66368251,1836.3,1836.0,2.18]
[1680547890395,5.3758,1836.5,1836.0,2.18]
[1680547890787,3.2078,1836.5,1836.3,2.18]
[1680547891800,3.74018373,1836.7,1836.3,2.18]
[1680547891995,3.2078,1836.7,1836.0,3.2078]
[1680547892200,5.3878,1836.7,1836.2,2.18]
[1680547892490,3.2078,1836.5,1836.2,2.18]
[1680547893192,3.2078,1836.7,1836.4,2.18]
[1680547893699,3.2078,1836.7,1836.2,2.18]
[1680547893700,3.2078,1836.5,1836.2,2.18]
[1680547893999,3.2078,1836.3,1836.2,2.18]
[1680547894495,3.2078,1836.6,1836.2,2.18]
[1680547894686,3.2078,1836.6,1836.5,2.18]
[1680547896094,3.2078,1836.6,1836.3,2.18]
[1680547897096,3.2078,1836.5,1836.3,2.18]
[1680547898590,3.2078,1836.7,1836.4,2.18]
[1680547898792,3.2078,1836.7,1836.5,2.18]
[1680547899203,3.2078,1836.9,1836.5,2.18]
[1680547899497,3.2078,1836.9,1836.7,2.18]
[1680547899703,3.76361861,1836.9,1836.7,2.18]
[1680547902095,3.76361861,1836.9,1836.6,2.92322164]
[1680547902296,5.3878,1836.7,1836.6,0.74322164]
[1680547902492,5.3878,1836.7,1836.2,2.18]
[1680547902693,5.92461861,1836.9,1836.4,2.18]
[1680547903004,3.2078,1836.9,1836.6,2.162]
[1680547903304,3.2078,1836.7,1836.6,2.162]
[1680547904298,3.2078,1836.7,1836.3,3.18]
[1680547904706,3.2078,1836.9,1836.6,2.162]
[1680547904998,2.72479059,1837.1,1836.6,5.3698]
[1680547905196,2.72479059,1837.1,1836.6,2.162]
[1680547905397,0.54479059,1837.1,1836.7,5.3878]
[1680547905595,3.2078,1837.2,1836.7,2.18]
[1680547906101,3.2078,1837.0,1836.7,2.18]
[1680547906695,5.3708,1836.8,1836.3,0.55514206]
[1680547907110,3.2078,1836.6,1836.3,2.73514206]
[1680547907602,3.2078,1836.6,1836.3,2.18]
[1680547907807,5.3758,1836.6,1836.1,2.18]
[1680547908604,3.2078,1836.6,1836.3,2.162]
[1680547908799,3.2078,1836.6,1836.5,2.18]
[1680547909100,0.55714011,1836.8,1836.5,2.18]
[1680547909298,3.2078,1836.9,1836.5,2.18]
[1680547909502,3.2078,1837.1,1836.7,2.18]
[1680547909706,2.18,1837.2,1836.7,5.3878]
[1680547909902,5.3878,1837.2,1836.7,5.3878]
[1680547910604,3.2078,1837.2,1836.9,2.18]
[1680547910798,0.54615565,1837.3,1836.9,2.18]
[1680547910995,3.2078,1837.4,1836.9,2.18]
[1680547911199,3.2078,1837.4,1837.1,2.18]
[1680547911404,3.2078,1837.4,1837.3,2.18]
[1680547912005,3.2078,1837.4,1837.2,2.18]
[1680547912208,3.2078,1837.4,1836.7,7.18]
[1680547912209,3.2078,1837.4,1837.0,2.18]
[1680547912408,5.3708,1837.5,1837.0,2.18]
[1680547913104,3.2078,1837.5,1837.2,2.18]
[1680547913310,3.2078,1837.7,1837.3,2.18]
[1680547913507,2.72415471,1837.8,1837.3,10.9198]
[1680547913708,0.54415471,1837.8,1837.7,2.162]
[1680547913901,3.2078,1837.9,1837.7,2.162]
[1680547914099,5.3678,1837.9,1837.4,2.18]
[1680547914304,2.16,1837.8,1837.2,2.18]
[1680547914513,2.16,1837.8,1837.5,0.80608641]
[1680547914810,2.16,1837.8,1837.3,3.2078]
[1680547915007,2.18,1837.8,1837.3,5.3878]
[1680547915212,3.2078,1837.7,1837.5,2.18]
[1680547915405,3.2078,1837.7,1837.3,2.18]
[1680547915803,3.2078,1837.5,1837.1,2.18]
[1680547916003,5.3678,1837.5,1836.9,2.18]
[1680547916302,3.2078,1837.1,1836.8,2.18]
[1680547917407,3.2078,1837.1,1836.5,2.18]
[1680547917408,3.2078,1836.9,1836.5,2.18]
[1680547917608,3.2078,1836.7,1836.5,2.18]
[1680547917909,3.2078,1836.7,1836.3,2.18]
[1680547918113,3.2078,1836.4,1836.1,2.18]
[1680547918310,3.2078,1836.4,1835.8,2.18]
[1680547918311,3.2078,1836.2,1835.8,2.18]
[1680547918708,0.15672993,1836.1,1835.8,2.18]
[1680547919111,3.2078,1836.0,1835.8,2.18]
[1680547920007,0.15672993,1836.1,1835.9,2.162]
[1680547920210,3.739632,1836.4,1835.4,5.0]
[1680547920211,3.739632,1836.4,1836.0,2.18]
[1680547920908,3.2078,1836.2,1836.0,2.18]
[1680547921811,5.3878,1836.2,1835.6,2.18]
[1680547922110,3.2078,1835.8,1835.5,5.335]
[1680547922315,3.2078,1836.1,1835.5,4.335]
[1680547922824,3.2078,1835.9,1835.5,4.335]
[1680547923327,3.2078,1836.3,1835.7,4.356]
[1680547923729,4.7665,1836.4,1835.7,4.356]
[1680547923730,3.2078,1836.1,1835.7,4.356]
[1680547924930,3.2078,1835.9,1835.7,4.356]
[1680547925229,3.2078,1835.9,1835.5,4.356]
[1680547925420,7.9743,1836.4,1835.8,4.356]
[1680547925616,3.2078,1836.4,1835.8,4.356]
[1680547925925,3.2078,1836.1,1835.8,4.356]
[1680547926232,3.2078,1836.2,1835.3,4.356]
[1680547926529,3.2078,1835.9,1835.5,4.356]
[1680547926719,8.3207,1836.4,1835.5,14.888]
[1680547926920,8.3207,1836.4,1835.8,4.356]
[1680547927130,3.2078,1836.4,1835.8,4.356]
[1680547927629,3.2078,1836.4,1835.9,7.5638]
[1680547927838,3.2078,1836.6,1836.3,4.356]
[1680547928129,0.53323114,1836.8,1836.3,4.356]
[1680547928130,3.2078,1836.8,1836.5,4.339]
[1680547928640,3.2078,1836.8,1836.4,4.356]
[1680547929424,3.2078,1836.8,1836.6,4.356]
[1680547930038,3.2078,1836.8,1836.5,0.36454484]
[1680547930231,3.2078,1836.6,1836.5,0.36454484]
[1680547930531,3.2078,1836.6,1835.6,10.36364617]
[1680547930532,3.2078,1836.6,1835.9,4.356]
[1680547930727,3.2078,1836.4,1835.9,14.888]
[1680547930929,3.2078,1836.7,1836.1,4.335]
[1680547931130,3.2078,1836.5,1836.1,4.335]
[1680547931436,3.2078,1836.3,1835.7,4.339]
[1680547931725,3.2078,1836.1,1835.7,4.339]
[1680547932123,3.2078,1835.9,1835.5,4.356]
[1680547933331,3.2078,1835.7,1835.0,6.06438706]
[1680547933632,3.2078,1835.1,1834.6,7.95897879]
[1680547933820,3.2078,1834.8,1834.6,3.60297879]
[1680547934022,3.2078,1835.0,1834.6,3.60297879]
[1680547934228,14.8942,1836.0,1834.6,3.60297879]
[1680547934229,3.2078,1834.8,1834.6,3.60297879]
[1680547934428,3.2078,1835.1,1834.6,3.60297879]
[1680547934629,3.2078,1835.0,1834.6,3.60297879]
[1680547934832,3.2078,1834.9,1834.6,3.60297879]
[1680547935033,3.2078,1835.2,1834.6,3.60297879]
[1680547935231,3.2078,1835.0,1834.6,3.60297879]
[1680547935729,3.2078,1834.8,1834.6,3.60297879]
[1680547935924,3.2078,1835.0,1834.6,3.60297879]
[1680547936121,3.2078,1834.8,1834.6,3.60297879]
[1680547936538,0.65565348,1834.9,1834.6,3.60297879]
[1680547938035,3.2078,1834.8,1834.6,3.60297879]
[1680547939635,1.0,1834.7,1834.6,3.60297879]
[1680547939931,1.0,1834.7,1833.9,1.0]
[1680547940135,1.0,1834.7,1833.6,8.09678751]
[1680547940136,3.2078,1834.3,1833.6,8.09678751]
[1680547940339,3.2078,1834.1,1833.7,13.08386052]
[1680547940837,3.2078,1834.1,1833.6,7.5468]
[1680547941038,1.0,1834.6,1833.6,7.5468]
[1680547941039,3.2078,1834.3,1833.6,7.5468]
[1680547941433,3.2078,1834.1,1833.6,7.5468]
[1680547942032,3.2078,1834.5,1833.7,5.0]
[1680547942338,3.73975877,1834.7,1834.0,3.2078]
[1680547943026,3.2078,1834.3,1833.7,3.2078]
[1680547943340,3.2078,1834.1,1833.7,3.2078]
[1680547944241,3.2078,1834.1,1833.5,3.2078]
[1680547944544,3.2078,1833.9,1833.5,3.2078]
[1680547945833,3.2078,1833.9,1833.3,3.2078]
[1680547946032,3.2078,1833.5,1833.1,3.2078]
[1680547946232,3.2078,1833.5,1832.9,3.75612169]
[1680547946429,3.2078,1833.5,1832.9,3.2078]
[1680547947032,3.2078,1833.3,1832.7,3.2078]
[1680547947227,3.2078,1833.3,1832.7,8.7398]
[1680547947439,3.2078,1833.3,1832.9,3.2078]
[1680547947739,3.2078,1833.3,1832.8,8.7398]
[1680547947930,3.2078,1833.3,1832.6,3.2078]
[1680547948134,3.2078,1833.3,1832.6,8.7398]
[1680547948433,3.2078,1833.5,1832.8,8.7398]
[1680547948836,1.11783983,1833.4,1832.8,8.7398]
[1680547949029,1.11783983,1833.4,1832.8,5.532]
[1680547949229,3.2078,1833.3,1832.6,8.7398]
[1680547949429,3.2078,1833.3,1832.8,8.7398]
[1680547949640,1.11783983,1833.4,1832.8,8.7398]
[1680547949834,3.2078,1833.5,1832.8,5.532]
[1680547950040,4.19230587,1833.3,1832.6,7.5638]
[1680547950237,3.2078,1833.3,1832.8,3.2078]
[1680547950637,3.2078,1833.3,1832.6,3.2078]
[1680547950836,3.2078,1833.3,1832.8,3.2078]
[1680547951443,7.5638,1833.3,1832.6,3.2078]
[1680547951631,3.2078,1833.1,1832.6,3.2078]
[1680547952041,4.356,1833.3,1832.5,5.532]
[1680547952042,3.2078,1832.9,1832.5,5.532]
[1680547952238,4.356,1833.3,1832.5,5.532]
[1680547952239,3.2078,1832.7,1832.5,5.532]
[1680547952440,1.48052303,1832.6,1832.5,5.532]
[1680547952751,2.7378817,1832.7,1832.5,5.532]
[1680547953047,3.2078,1832.7,1832.5,5.532]
[1680547953233,3.2078,1832.7,1832.4,6.06596913]
[1680547953437,3.2078,1832.7,1832.5,5.532]
[1680547954537,3.2078,1832.7,1832.3,5.532]
[1680547954943,3.2078,1832.5,1832.3,5.532]
[1680547955150,3.2078,1833.2,1832.5,5.532]
[1680547955343,3.2078,1833.2,1832.7,5.532]
[1680547955648,3.2078,1833.4,1833.1,5.532]
[1680547955851,3.2078,1833.6,1833.2,8.7398]
[1680547956639,3.2078,1833.6,1833.3,1.0]
[1680547956839,3.2078,1833.6,1833.2,3.2078]
[1680547957147,3.2078,1833.4,1832.8,10.62097273]
[1680547957442,3.2078,1833.4,1832.8,7.5638]
[1680547957647,3.2078,1833.4,1832.8,3.2078]
[1680547957835,7.5638,1833.4,1832.9,5.532]
[1680547958240,7.5638,1833.4,1832.9,46.332]
[1680547958447,3.2078,1833.6,1833.1,5.532]
[1680547958640,3.2078,1833.6,1833.0,3.2078]
[1680547958843,3.2078,1833.7,1833.0,5.532]
[1680547959042,3.2078,1833.6,1833.2,5.532]
[1680547959241,4.322,1833.8,1833.2,5.532]
[1680547959435,0.84647099,1833.7,1833.2,5.532]
[1680547959837,0.84647099,1833.7,1833.3,3.2078]
[1680547960044,3.2078,1833.9,1833.1,3.2078]
[1680547960244,4.356,1833.8,1833.1,3.2078]
[1680547960749,3.2078,1833.9,1833.2,1.0]
[1680547960952,3.2078,1833.9,1833.3,8.7398]
[1680547961251,3.2078,1833.9,1833.1,3.2078]
[1680547962046,7.5298,1833.8,1833.3,3.2078]
[1680547962250,4.322,1833.8,1833.3,3.2078]
[1680547962657,4.322,1833.8,1833.2,5.532]
[1680547963346,4.329,1833.6,1833.1,3.2078]
[1680547964547,7.5638,1833.5,1833.1,3.2078]
[1680547965157,4.322,1833.6,1833.1,3.2078]
[1680547965454,7.5298,1833.6,1833.1,3.2078]
[1680547965664,7.5638,1833.4,1832.6,3.75777911]
[1680547965847,7.5638,1833.4,1832.6,3.2078]
[1680547966160,4.356,1833.2,1832.6,3.2078]
[1680547966355,3.2078,1832.6,1832.0,0.15]
[1680547966665,7.05984976,1832.1,1831.1,8.7398]
[1680547966957,3.2078,1831.8,1831.1,13.7454]
[1680547967257,3.2078,1831.8,1831.1,8.7398]
[1680547967454,3.2078,1832.1,1831.6,5.532]
[1680547967660,3.2078,1832.4,1831.9,3.2078]
[1680547967960,5.59560682,1833.0,1831.4,15.54644045]
[1680547967961,7.5638,1832.2,1831.4,15.54644045]
[1680547968148,7.5638,1832.2,1831.2,3.2078]
[1680547968149,3.2078,1832.0,1831.2,3.2078]
[1680547968351,3.2078,1831.8,1831.2,3.2078]
[1680547968553,3.2078,1831.6,1831.0,3.3078]
[1680547968946,3.2078,1831.6,1831.0,8.8398]
[1680547970259,3.05733215,1831.6,1831.0,8.8398]
[1680547970456,3.2078,1831.5,1831.0,8.8398]
[1680547970850,4.9052,1832.2,1831.0,8.8398]
[1680547970851,7.5638,1832.0,1831.0,8.8398]
[1680547971158,1.78376114,1831.4,1831.0,3.3078]
[1680547971353,3.2078,1831.5,1831.0,3.3078]
[1680547971855,4.322,1831.4,1831.0,0.1]
[1680547972058,3.2078,1831.3,1831.0,0.1]
[1680547972664,3.2078,1831.1,1831.0,0.1]
[1680547973162,7.5638,1831.4,1831.0,0.1]
[1680547973550,5.755,1831.4,1831.0,0.1]
[1680547973752,2.54959084,1834.5,1831.0,0.1]
[1680547973753,3.2078,1832.5,1831.7,5.0]
[1680547974060,3.2078,1832.7,1832.1,8.2078]
[1680547974264,1.0327323,1832.6,1832.3,3.2078]
[1680547974468,3.2078,1832.9,1832.3,3.2078]